Cogmind - Beta 16 @@@ ROGUE MODE // 2025.12.25 @ 17:17:26 Player: TheGamingJasper Result: Self-destructed Performance ------------- Evolutions (1) 500 Regions Visited (2) 400 Robots Destroyed (14) 70 Value Destroyed (232) 232 Prototype IDs (0) 0 Alien Tech Used (0) 0 Bonus (0) 0 TOTAL SCORE: 1202 Bonus ------- None Cogmind --------- Core Integrity 44/400 Matter 196/300 Energy 125/125 System Corruption 0% Temperature Cool (0) Movement Flying (120) Ox1 Location -9/Materials Parts ------- > --- POWER (1) -------- Light Ion Engine > --- PROPULSION (3) --- Flight Unit > --- UTILITY (3) ------ Visual Processing Unit Visual Processing Unit Advanced Targeting Computer > --- WEAPON (2) ------- Spread Laser > --- INVENTORY (5) ---- Light Nuclear Core Light Nuclear Core Visual Processing Unit Shield Generator Peak State ------------ > --- POWER ------------ Light Ion Engine > --- PROPULSION ------- Flight Unit Flight Unit Flight Unit > --- UTILITY ---------- Visual Processing Unit Visual Processing Unit Advanced Targeting Computer > --- WEAPON ----------- Spread Laser > --- INVENTORY -------- Light Nuclear Core Light Nuclear Core Visual Processing Unit Shield Generator [Rating: 14] Favorites ----------- Power Light Ion Engine Engine Light Ion Engine Propulsion Flight Unit Leg Aluminum Leg Flight Unit Flight Unit Utility Visual Processing Unit Device Sensor Array Storage Small Storage Unit Processor Visual Processing Unit Weapon Spread Laser Energy Gun Spread Laser Build | -11 -10 -9 ------- Run | Yrd Mat Mat Slots Evolved 2 | . . 2 Power . | . . . Propulsion 1 | . . 1 Utility 1 | . . 1 Weapon . | . . . Parts Attached 24 | 6 7 11 Power 3 | 1 1 1 Engine 3 | 1 1 1 Core . | . . . Reactor . | . . . Propulsion 10 | 2 2 6 Treads . | . . . Leg 2 | 2 . . Wheel . | . . . Hover . | . . . Flight 8 | . 2 6 Utility 5 | 1 2 2 Device 1 | . . 1 Storage 1 | 1 . . Processor 3 | . 2 1 Hackware . | . . . Protection . | . . . Artifact . | . . . Weapon 6 | 2 2 2 Energy Gun 6 | 2 2 2 Energy Cannon . | . . . Ballistic Gun . | . . . Ballistic Cannon . | . . . Launcher . | . . . Special Weapon . | . . . Impact Weapon . | . . . Slashing Weapon . | . . . Piercing Weapon . | . . . Special Melee Weapon . | . . . Unidentified Prototypes . | . . . Parts Lost 9 | . . 9 Power 1 | . . 1 Propulsion 6 | . . 6 Utility 1 | . . 1 Weapon 1 | . . 1 Highest Loss Streak 4 | . . 4 To Critical Strikes . | . . . Average Backups 3 | 3 4 3 Power . | . . . Propulsion . | 1 . . Utility 1 | . 1 1 Weapon 1 | . 1 1 Tool/Special . | . . . Unused Backups 5 | . 1 4 Power 3 | . 1 2 Propulsion . | . . . Utility 2 | . . 2 Weapon . | . . . Tool/Special . | . . . Average Slot Usage (%) 80 | . 91 74 Engine 12 | . 14 11 Leg 7 | . 20 . Flight 16 | . 7 22 Device 2 | . . 4 Storage 3 | . 10 . Processor 21 | . 14 25 Energy Gun 15 | . 22 11 Peak Build Rating 14 | 6 11 14 Average Rating 9 | 1 8 10 On Entrance 5 | . 6 9 Avg Prop Armor Cover (%) . | . . . Naked Turns . | . . . Heaviest Build 16 | 14 16 9 Greatest Support 20 | 20 20 12 Greatest Overweight (x) 2 | 2 . 2 Average Overweight (x) . | 1 . . Largest Inventory Capacity 8 | 8 8 5 Average Capacity 5 | 5 7 5 Most Carried 8 | 5 8 5 Average Carried 4 | 4 4 3 Final Capacity 8 | 8 5 5 Final Carried 5 | 1 5 4 Class Distribution -------------------- 100% | Mutant Dominant Class ---------------- Mutant | -10/Materials Mutant | -9/Materials Resources | -11 -10 -9 ----------- Run | Yrd Mat Mat Matter Collected 336 | 201 34 101 Remotely . | . . . Salvage Created 255 | . 105 150 Parts 26 | . 6 20 Haulers Intercepted . | . . . Recyclers Shooed 2 | . 1 1 Parts Field Recycled . | . . . Retrieved Matter . | . . . Parts Self-Destructed . | . . . Prevented . | . . . Parts Restored . | . . . Kills | -11 -10 -9 ------- Run | Yrd Mat Mat Combat Hostiles Destroyed 13 | . 3 10 Guns 13 | . 3 10 Classes Destroyed 4 | . 2 2 Recycler 1 | . 1 . Swarmer 10 | . 3 7 Grunt 2 | . . 2 Sentry 1 | . . 1 Best Kill Streak 5 | . 4 5 Combat Bots Only 5 | . 3 5 Max Kills in Single Turn 1 | . 1 1 Gunslinging . | . . . Exploded . | . . . Melee . | . . . Uniques/NPCs Destroyed . | . . . Combat | -11 -10 -9 -------- Run | Yrd Mat Mat Hostile Shots Fired 58 | . 3 55 Missed 11 | . 1 10 Hits 47 | . 2 45 Projectile 47 | . 2 45 Critical Strikes 1 | . . 1 Damage Taken 704 | . 16 688 Core 356 | . . 356 Absorbed by Shields . | . . . Core Remaining (%) 100 | 100 100 . Volleys Fired 31 | . 5 26 Largest 2 | . 2 2 Hottest 130 | . 130 130 Shots Fired 47 | . 10 37 Gun 47 | . 10 37 Cannon . | . . . Launcher . | . . . Special . | . . . Kinetic . | . . . Thermal 47 | . 10 37 Explosive . | . . . Electromagnetic . | . . . Robot Hit Streak 9 | . 4 9 Robot Miss Streak 7 | . 7 7 Penetration Max . | . . . Secondary Targets . | . . . Shots Hit Robots 41 | . 8 33 Core Hits 52 | . 10 42 Critical Kills . | . . . Critical Parts Destroyed . | . . . Critical Strikes . | . . . Melee Attacks . | . . . Impact . | . . . Slashing . | . . . Piercing . | . . . Sneak Attacks . | . . . Combat Hostiles . | . . . Follow-up Attacks . | . . . Damage Inflicted 445 | . 80 365 Guns 445 | . 80 365 Cannons . | . . . Explosions . | . . . Melee . | . . . Ramming . | . . . Kinetic . | . . . Thermal 445 | . 80 365 Explosive . | . . . Electromagnetic . | . . . Impact . | . . . Slashing . | . . . Piercing . | . . . Highest Corruption . | . . . Average Corruption . | . . . Corruption Purged . | . . . Corruption Blocked . | . . . Overload Shots . | . . . Overflow Damage . | . . . Projectiles . | . . . Explosions . | . . . Melee . | . . . Knockbacks . | . . . Impact . | . . . Kinetic . | . . . Secondary . | . . . Self-Inflicted Damage . | . . . Shots . | . . . Rammed . | . . . Targets Rammed . | . . . Kicked . | . . . Crushed . | . . . Highest Temperature 666 | . 327 666 Average Temperature 269 | . 164 300 Received Heat Transfer 192 | . . 192 Effects 18 | . . 18 Shutdowns 4 | . . 4 Energy Bleed 2 | . . 2 Matter Decay 2 | . . 2 Short Circuit 1 | . . 1 Damage (minor) 1 | . . 1 Damage (major) 6 | . . 6 Damage (core) 2 | . . 2 Siege Activations . | . . . Martial Activations . | . . . Shielding Activations . | . . . Robots Disrupted . | . . . Combat Hostiles . | . . . Robots Corrupted . | . . . Combat Hostiles . | . . . Parts Fried . | . . . Impact Corruptions . | . . . Robots Melted . | . . . Combat Hostiles . | . . . Parts Melted 1 | . . 1 Heat Transferred 560 | . 90 470 Parts Sabotaged . | . . . Parts Stolen . | . . . Parts Stripped . | . . . Power Chain Reactions . | . . . Alert | -11 -10 -9 ------- Run | Yrd Mat Mat Maximum Alert Level . | . . . Low Security (%) 100 | 100 100 100 Level 1 . | . . . Level 2 . | . . . Level 3 . | . . . Level 4 . | . . . Level 5 . | . . . High Security . | . . . Max Security . | . . . Peak Influence 110 | . 70 110 Initial 18 | . . 18 Average 34 | . 25 45 Influence Increases 315 | . 75 240 Destroy 0b10 Robot/C 260 | . 60 200 Destroy 0b10 Robot/NC 5 | . 5 . Destroy Leader 50 | . 10 40 Influence Decreases 235 | . 30 205 Entered New Map 27 | . . 27 Time Decay 120 | . 30 90 Lost Part 88 | . . 88 Squads Dispatched 2 | . 1 1 Investigation . | . . . Extermination . | . . . Reinforcement 2 | . 1 1 Assault . | . . . Garrison . | . . . Intercept . | . . . Searches Triggered . | . . . Construction Impeded . | . . . Haulers Reinforced . | . . . Active Scanning Responses . | . . . Cargo Convoy Interrupts . | . . . Stealth | -11 -10 -9 --------- Run | Yrd Mat Mat Distress Signals 3 | . . 3 Communications Jammed . | . . . Distress Signals . | . . . Times Spotted 26 | . 6 20 Peak Tracking Total 7 | . 4 7 Tactical Retreats . | . . . Traps | -11 -10 -9 ------- Run | Yrd Mat Mat Traps Triggered . | . . . Indirectly . | . . . Trap Hack Attempts . | . . . Triggered . | . . . Disarmed . | . . . Reprogrammed . | . . . Reused . | . . . Traps Extracted . | . . . Installed . | . . . Triggered . | . . . Machines | -11 -10 -9 ---------- Run | Yrd Mat Mat Machines Disabled . | . . . Max in Single Turn . | . . . Machines Repaired . | . . . Machines Dismantled . | . . . Machines Sabotaged . | . . . Overloaded Fab Kills . | . . . Hacking | -11 -10 -9 --------- Run | Yrd Mat Mat Machines Accessed 1 | . . 1 Terminals 1 | . . 1 Fabricators . | . . . Repair Stations . | . . . Recycling Units . | . . . Scanalyzers . | . . . Garrison Access . | . . . Total Hacks 1 | . . 1 Successful . | . . . Failed 1 | . . 1 Catastrophic 1 | . . 1 Database Lockouts . | . . . Manual 1 | . . 1 Terminals 1 | . . 1 Fabricators . | . . . Repair Stations . | . . . Recycling Units . | . . . Scanalyzers . | . . . Garrison Access . | . . . Terminal Hacks . | . . . Fabricator Hacks . | . . . Repair Station Hacks . | . . . Recycling Unit Hacks . | . . . Scanalyzer . | . . . Garrison Access Hacks . | . . . Unauthorized Hacks . | . . . Terminals . | . . . Fabricators . | . . . Repair Stations . | . . . Recycling Units . | . . . Scanalyzers . | . . . Garrison Access . | . . . Data Cores Recovered . | . . . Used . | . . . Hacking Detections 1 | . . 1 Full Trace Events . | . . . Feedback Events . | . . . Feedback Blocked . | . . . Robot Schematics Acquired . | . . . Robots Built . | . . . Authchips . | . . . Time . | . . . Total Robot Build Rating . | . . . Part Schematics Acquired . | . . . Parts Built . | . . . Authchips . | . . . Time . | . . . Total Part Build Rating . | . . . Part Studies Acquired . | . . . Parts Repaired . | . . . Time . | . . . Parts Recycled . | . . . Recycled Matter . | . . . Retrieved Matter . | . . . Retrieved Components . | . . . Parts Scanalyzed . | . . . Part Schematics Acquired . | . . . Parts Damaged . | . . . Bothacking | -11 -10 -9 ------------ Run | Yrd Mat Mat Used RIF Installer . | . . . Robots Hacked . | . . . Non-combat . | . . . Combat . | . . . Robot Hacks Applied . | . . . Relay Couplers Released . | . . . Fabnet Peak Effective % . | . . . Robots Rewired . | . . . Allies Hacked . | . . . Hacks Repelled . | . . . Allies | -11 -10 -9 -------- Run | Yrd Mat Mat Total Allies . | . . . Largest Group . | . . . Highest-Rated Group . | . . . Highest-Rated Ally . | . . . Total Orders . | . . . Ally Attacks . | . . . Total Damage . | . . . Kills . | . . . Allies Corrupted . | . . . Allies Melted . | . . . Intel | -11 -10 -9 ------- Run | Yrd Mat Mat Active Infowar (turns) 360 | . 114 246 Optics 360 | . 114 246 Sensors 105 | . . 105 Robot Analysis Total . | . . . Derelict Logs Recovered . | . . . Drone Launches . | . . . Drone Recoveries . | . . . Exploration | -11 -10 -9 ------------- Run | Yrd Mat Mat Turns Passed 427 | 44 137 246 Spaces Moved 465 | 32 143 290 Core 33 | 31 . 2 Treads . | . . . Legs 55 | 1 54 . Wheels . | . . . Hover . | . . . Flight 377 | . 89 288 Fastest Speed 34 | 50 37 34 Average Speed 52 | 103 68 39 Slowest Speed 200 | 150 120 200 Overloaded Moves . | . . . Propulsion Burnouts . | . . . Robots Hopped 8 | . 4 4 Potential Cave-ins . | . . . Cave-ins Triggered . | . . . Exploration Rate (%) 22 | 2 25 40 Regions Visited 2 Branch Regions . Pre-discovered Areas . | . . . Known Exits Taken . | . . . Unknown Exits Taken 2 | 1 1 . Scrap Searched . | . . . Spaces Dug . | . . . Terrain Destroyed . | . . . Melee . | . . . Projectile . | . . . AOE . | . . . Terrain Rammed . | . . . Walls Destroyed . | . . . Machines Disabled . | . . . Actions | -11 -10 -9 --------- Run | Yrd Mat Mat Total 593 | 42 170 381 Wait 47 | . 1 46 Move 447 | 31 134 282 Hop 8 | . 4 4 Pick Up 26 | 5 11 10 Fast Attach 3 | 2 1 . Attach 19 | 4 4 11 Detach . | . . . Swap 2 | . 2 . Drop 10 | . 8 2 Fire 31 | . 5 26 Melee . | . . . Ram . | . . . Kick . | . . . Crush . | . . . Escape Stasis . | . . . Rewire . | . . . Trap . | . . . Miscellaneous . | . . . Route ------- -11/Scrapyard -10/Materials -9/Materials History --------- Turn | Location | Event 9 | -11/Scrapyard | Discovered new exit (range 16) 45 | -11/Scrapyard | Entered Materials 173 | -10/Materials | Discovered new exit (range 9) 182 | -10/Materials | Entered another Materials area 182 | -9/Materials | Evolved 2 slots: Propulsion x1, Utility x1 311 | -9/Materials | Build established: Mutant 315 | -9/Materials | Core integrity fell below 50% 352 | -9/Materials | Lost 4 parts (2n1u1w) 408 | -9/Materials | Core integrity fell below 20% 428 | -9/Materials | Self-destructed Last Messages --------------- K-01 Serf collects debris. Acquired Adv. Targeting Computer. Acquired Lgt. Nuclear Core. T-07 Excavator is excavating. W-16 Scout sends out distress signal. Connecting with Terminal... K-01 Serf cleans the Nuclear Reactor. S-10 Pest destroyed. K-01 Serf cleans the Nuclear Reactor. S-10 Pest destroyed. K-01 Serf collects debris. Acquired Flight Unit. Flight Unit destroyed. S-10 Pest destroyed. Lgt. Ion Engine destroyed. Acquired Flight Unit. Acquired Lgt. Ion Engine. W-16 Scout sends out distress signal. K-01 Serf collects debris. Flight Unit destroyed. Map ----- +----------------------------------------------------+ | #????????? | | ###+###########+####################????????? | | ? ????# #???????????????????????? | | # "T" #??#"" #???????????????????????? | | # #??#"" #???????????????????????? | | # ** #?#"T """ #???????????????????????? | | # *[ ##?#"" """ #???????????????????????? | | # #??#"" """ #???????????????????????? | | ########??# """ #???????????????????????? | | ??????????# #???????????????????????? | | ??????????###########???????????????????????? | | ????????????????????????????????????????????? | | ????????????????????????????????????????????? | | ????????????????????????????????????????????? | | ????????????????????????????????????????????? | | ???????????????????????????????????????????? | | ??????????????????????????????????????????? | | ?????????????????????????????????????????? | | #???????????????????????????########????????? | | #???????????????????????????# """ ]#????????? | | #???????????????????????????# """ #####????? | | #?????????????????+##+####### """ # #????? | | #????????????????# # Y # + #????? | | ?????????????????# # # # #????? | | ?????????????????# # + ! # #????? | | ?????????????????# ######@ ######## ##???? | | ?????????????????# ?????# ####### #???? | | ?????????????????# ###### #???? | | ?????????????###?# #???? | | ????????????? ## #???? | | ????????????? ## #### #???? | | ??????????# ## w #????? ##???? | | ????????? # """ ## #????????????? | | ??????????+ """ # """ #????????????? | | ?+????????# """ + """ #????????????? | | # #???????# # """ #????????????? | | # #???????# """ # [% [ """ #????????????? | | # #???????# """ ## % """ #????????????? | | # #???????# """ ## "T" #????????????? | | # #???????# [## #????????????? | | # #???????# %%/ [ #????????????? | | # #???????######## ######+#####????????????? | | # #??????????????# #???????????????????????? | | # ################ #???????????????????????? | | #???????????????????????? | | #####################???????????????????????? | | ????????????????????????????????????????????? | | ????????????????????????????????????????????? | | ????????????????????????????????????????????? | | ????????????????????????????????????????????? | +----------------------------------------------------+ Best States ------------- Heat Dissipation 28 Energy Generation 10 Energy Capacity 250 Matter Stores 241 Matter Capacity 300 Sight Range 18 Robot Scan Range 14 Terrain Scan Density 10 Evasion (%) 63 Targeting Accuracy 8 Item Schematics ----------------- None Robot Schematics ------------------ None Fabricated ------------ Nothing Repaired ---------- Nothing Studied --------- None Alien Tech Used ----------------- None Achievements -------------- None Challenges ------------ None Game ------ Seed ProtonNodeMantle Manual? 0 Play Time 00:09:44 Cumulative 40.0 hours Start 2025.12.25 @ 17:11:16 End 2025.12.25 @ 17:17:26 Sessions 1 Manual Loads 0 Difficulty Rogue Special Mode None Game No. 70 Rogue 69 Adventurer 1 Explorer 0 Win Type - Total 0 Types 0/0/0/0/0/0/0/0/0/0 Lore% 11 Gallery% 32 Achievement% 22 Wizard Run 0 Options --------- Layout 1 ASCII 0 Keyboard 0 Movement Mouse Keybinds 0 Fullscreen 1 Font 24/Smallcaps Map View 50x35 Zoom Use 0% Tactical HUD 0 Map Filters NONE Filters NONE Steam 1 RUN: 8a725016-0633-47b7-8ae7-7340ad17526a